fUSD/lending_fUSD_20251028
["ID","MTS","AMOUNT","RATE_DAILY","PERIOD"]
[392553898,1761655841174,-500.0,0.00029847,15]
[392553899,1761655841185,-11746.0739537,0.00029852,3]
[392553900,1761655841194,-1425.0,0.00029854,2]
[392553901,1761655841203,-1425.0,0.00029861,2]
[392553902,1761655841212,-11746.0739537,0.00029871,3]
[392553903,1761655841222,-1425.0,0.00029879,2]
[392553904,1761655841232,-950.7533349,0.00029884,2]
[392553905,1761655841242,-1425.0,0.0002989,2]
[392553906,1761655841251,-58730.3697685,0.0002989,3]
[392553907,1761655841260,-10538.9699692,0.0002989,3]
[392553908,1761655841270,-257.07123123,0.00029891,2]
[392553909,1761655841279,-1425.0,0.00029896,2]
[392553910,1761655841288,-500.0,0.00029899,3]
[392553911,1761655841298,-74153.8524,0.000299,2]
[392553912,1761655841307,-1000.0,0.000299,2]
[392553913,1761655841316,-7734.191,0.000299,2]
[392553914,1761655841326,-518.1872452,0.000299,2]
[392553915,1761655841336,-1425.0,0.000299,2]
[392553916,1761655841345,-333.4714611,0.000299,2]
[392553917,1761655841354,-6011.55808482,0.000299,2]
[392553918,1761655841363,-270.95297813,0.000299,2]
[392553919,1761655841372,-205.9628819,0.000299,5]
[392553920,1761655841382,-930.07732843,0.000299,2]
[392553921,1761655841391,-708.01083557,0.000299,2]
[392553922,1761655841400,-1425.0,0.00029904,2]
[392553923,1761655841410,-1425.0,0.00029907,2]
[392553924,1761655841419,-1044.13487852,0.00029914,2]
[392553925,1761655841428,-307.0,0.00029925,5]
[392553926,1761655841438,-1425.0,0.00029925,2]
[392553927,1761655841449,-1425.0,0.00029925,2]
[392553928,1761655841458,-500.0,0.00029937,2]
[392553929,1761655841467,-500.0,0.00029937,2]
[392553930,1761655841476,-23492.1479074,0.00029937,3]
[392553931,1761655841486,-21077.9399383,0.00029937,3]
[392553932,1761655841499,-1069.3947132,0.00029939,2]
[392553933,1761655841513,-969.102015,0.00029939,2]
[392553934,1761655841523,-7863.4391653,0.00029947,2]
[392553935,1761655841533,-38258.6474624,0.00029947,2]
[392553936,1761655841542,-10538.9699692,0.00029959,3]
[392553937,1761655841551,-1523.92783432,0.00029969,2]
[392553938,1761655841560,-150.5,0.0002997,120]
[392553939,1761655841570,-35238.2218611,0.0002997,3]
[392553940,1761655841580,-31616.9099075,0.0002997,3]
[392553941,1761655841589,-150.0,0.00029973,5]
[392553942,1761655841598,-150.0,0.00029973,7]
[392553943,1761655841608,-1425.0,0.00029973,2]
[392553944,1761655841619,-1425.0,0.00029973,2]
[392553945,1761655841628,-11746.0739537,0.00029979,3]
[392553946,1761655841637,-10538.9699692,0.00029979,3]
[392553947,1761655841647,-150.5,0.0002998,120]
[392553948,1761655841656,-165.82307671,0.0002998,120]
[392553949,1761655841665,-500.0,0.0002998,3]
[392553950,1761655841675,-22487.28333156,0.0002998,3]
[392553951,1761655841694,-572.2441656,0.0002998,3]
[392553963,1761655843552,-87.24002055,0.00029782,2]
[392553990,1761655846234,-402.3318022,0.00029782,2]
[392553991,1761655846333,-12.67954467,0.00029782,2]
[392553992,1761655846399,-346.14028,0.00029782,2]
[392554347,1761656235886,700.0,0.00015,30]
[392554348,1761656235976,500.0,0.00015,30]
[392554349,1761656236362,500.0,0.00015,30]
[392554350,1761656236819,604.47822964,0.00012,2]
[392554351,1761656240519,500.0,0.00015,30]
[392554352,1761656241025,500.0,0.00015,30]
[392554353,1761656241340,500.0,0.00015,30]
[392554354,1761656241535,583.75675892,0.00012,2]
[392554355,1761656244785,500.0,0.00015,30]
[392554356,1761656245158,500.0,0.00015,30]
[392554357,1761656245199,500.0,0.00015,30]
[392554358,1761656245500,500.0,0.00015,30]
[392554359,1761656245672,500.0,0.00015,30]
[392554360,1761656245918,500.0,0.00015,30]
[392554361,1761656246026,500.0,0.00012,2]
[392554362,1761656246295,500.0,0.00012,2]
[392554363,1761656246387,881.16822524,0.00012,2]
[392554364,1761656246650,600.0,0.00012,2]
[392554365,1761656246684,500.0,0.00015,30]
[392554366,1761656247055,500.0,0.00015,30]
[392554367,1761656247544,947.23687126,0.00012,2]
[392554368,1761656252013,706.45115207,0.00015,30]
[392554369,1761656253255,513.69910083,0.00015,30]
[392554384,1761656953122,-150.0,0.00023534,2]
[392554385,1761656953144,-4640.61534,0.00024,5]
[392554392,1761657031585,-874.0,0.000236,5]
[392554393,1761657031595,-162.6,0.000255,2]
[392554394,1761657031604,-513.69383263,0.00025887,2]
[392554395,1761657031643,-257.56741104,0.00025887,2]
[392554396,1761657031652,-1200.0,0.00026998,2]
[392554397,1761657031662,-504.92985792,0.00026999,2]
[392554398,1761657031701,-695.07014208,0.00026999,2]
[392554399,1761657031711,-300.0,0.00026999,2]
[392554400,1761657031720,-150.0,0.00027,2]
[392554401,1761657031730,-150.0,0.00027,2]
[392554402,1761657031739,-150.75442953,0.00027,2]
[392554403,1761657031748,-150.0,0.00027,2]
[392554404,1761657031757,-150.0,0.00027,2]
[392554405,1761657031766,-150.0,0.00027,2]
[392554406,1761657031775,-150.0,0.00027,2]
[392554407,1761657031784,-150.0,0.00027,2]
[392554408,1761657031793,-150.67562317,0.00027,2]
[392554409,1761657031803,-150.0,0.00027,2]
[392554410,1761657031813,-151.28843053,0.00027,2]
[392554411,1761657031822,-150.97585933,0.00027,2]
[392554412,1761657031831,-263.46958762,0.00027,2]
[392554413,1761657031840,-150.0,0.00027,2]
[392554414,1761657031849,-150.0,0.0002775,7]
[392554415,1761657031858,-168.0,0.00028049,2]
[392554416,1761657031868,-168.0,0.00028066,2]
[392554417,1761657031878,-168.0,0.00028089,2]
[392554418,1761657031887,-1248.0,0.00028232,2]
[392554419,1761657031897,-1076.0,0.00028289,2]
[392554420,1761657031906,-683.35490544,0.00028321,2]
[392554421,1761657031915,-150.0,0.000285,7]
[392554422,1761657031926,-150.0,0.000285,7]
[392554423,1761657031935,-160.0,0.00028546,2]
[392554424,1761657031944,-168.0,0.00028657,7]
[392554425,1761657031954,-168.0,0.0002867,2]
[392554426,1761657031963,-168.0,0.00028723,2]
[392554427,1761657031973,-231.97,0.00028733,2]
[392554428,1761657031982,-204.68,0.0002876,2]
[392554429,1761657031991,-168.0,0.00028797,7]
[392554430,1761657032001,-1480.4,0.00028806,2]
[392554431,1761657032010,-229.28,0.00028877,2]
[392554433,1761657032020,-207.5,0.00028878,2]
[392554435,1761657032029,-579.04,0.00029,7]
[392554437,1761657032039,-563.62,0.00029,7]
[392554439,1761657032048,-487.97,0.00029,7]
[392554440,1761657032058,-150.0,0.00029,2]
[392554441,1761657032068,-168.0,0.00029054,2]
[392554442,1761657032077,-229.28,0.00029079,2]
[392554443,1761657032087,-168.0,0.00029081,7]
[392554444,1761657032096,-420.0,0.00029189,2]
[392554445,1761657032106,-529.0,0.00029205,7]
[392554446,1761657032115,-150.0,0.0002925,7]
[392554447,1761657032126,-229.28,0.00029281,2]
[392554448,1761657032135,-160.0,0.00029318,2]
[392554449,1761657032145,-168.0,0.00029338,2]
[392554450,1761657032154,-529.0,0.000294,2]
[392554451,1761657032163,-3491.0,0.00029435,2]
[392554452,1761657032173,-558.0,0.00029435,2]
[392554453,1761657032182,-6625.0,0.00029435,2]
[392554454,1761657032191,-229.28,0.00029483,2]
[392554455,1761657032200,-1300.0,0.00029489,7]
[392554456,1761657032210,-229.28,0.00029685,2]
[392554457,1761657032219,-1425.0,0.00029735,2]
[392554458,1761657032229,-427.514,0.00029735,23]
[392554459,1761657032239,-200.0,0.00029747,2]
[392554460,1761657032249,-500.0,0.00029763,7]
[392554461,1761657032258,-500.0,0.00029763,7]
[392554462,1761657032268,-125.65369043,0.0002978,2]
[392554463,1761657032280,-1299.34630957,0.0002978,2]
[392554464,1761657032289,-157.71476324,0.0002978,2]
[392554465,1761657032305,-6467.50863676,0.0002978,2]
[392554466,1761657032316,-2139.2223,0.0002978,2]
[392554467,1761657032325,-151.0,0.00029782,2]
[392554468,1761657032334,-1425.0,0.00029783,2]
[392554469,1761657032344,-1425.0,0.00029785,2]
[392554470,1761657032353,-1425.0,0.00029789,2]
[392554471,1761657032362,-2500.0,0.0002979,2]
[392554472,1761657032374,-1425.0,0.00029796,2]
[392554473,1761657032383,-214.73246494,0.00029799,2]
[392554477,1761657037395,-1425.0,0.00029725,2]
[392554479,1761657037407,-2500.0,0.0002979,2]
[392554480,1761657037418,-785.26753506,0.00029799,2]
[392554481,1761657037427,-854.91822413,0.000298,7]
[392554482,1761657037435,-1425.0,0.00029801,2]
[392554483,1761657037445,-1425.0,0.00029808,2]
[392554484,1761657037454,-1425.0,0.00029808,2]
[392554485,1761657037463,-417.39525394,0.00029832,2]
[392554486,1761657037471,-250.0,0.00029832,2]
[392554487,1761657037481,-460.76562507,0.00029832,2]
[392554488,1761657037493,-539.23437493,0.00029832,2]
[392554489,1761657037502,-7734.191,0.00029832,2]
[392554490,1761657037511,-1044.13487852,0.0002984,2]
[392554491,1761657037519,-1425.0,0.00029845,2]
[392554492,1761657037528,-239.26922572,0.00029871,2]
[392554493,1761657037537,-10091.44901338,0.00029872,2]
[392554494,1761657037546,-526.48462508,0.00029873,5]
[392554495,1761657037555,-500.0,0.00029873,2]
[392554496,1761657037563,-500.0,0.00029873,5]
[392554497,1761657037572,-500.0,0.00029874,2]
[392554498,1761657037581,-500.0,0.00029874,2]
[392554499,1761657037590,-10091.44901333,0.00029875,2]
[392554500,1761657037599,-10091.44901333,0.00029878,2]
[392554501,1761657037607,-346.7217776,0.00029879,2]
[392554502,1761657037616,-1425.0,0.0002988,2]
[392554503,1761657037626,-72362.53452436,0.0002988,2]
[392554504,1761657037643,-310.63329972,0.0002988,2]
[392554505,1761657037655,-1480.68457592,0.0002988,2]
[392554506,1761657037664,-10091.44901333,0.00029881,2]
[392554507,1761657037673,-1425.0,0.00029882,2]
[392554508,1761657037683,-10091.44901333,0.00029884,2]
[392554509,1761657037693,-229.28,0.00029887,2]
[392554510,1761657037702,-10091.44901333,0.00029888,2]
[392554511,1761657037712,-5000.0,0.0002989,2]
[392554512,1761657037721,-10091.44901333,0.00029891,2]
[392554513,1761657037730,-10091.44901333,0.00029894,2]
[392554514,1761657037739,-3955.08103285,0.00029897,2]
[392554590,1761657039608,-1000.0,0.00028884,2]
[392554591,1761657039617,-6463.0,0.00029435,2]
[392554592,1761657039628,-6136.36798048,0.00029897,2]
[392554593,1761657039637,-451.55683536,0.00029899,2]
[392554594,1761657039647,-162.28100394,0.000299,2]
[392554595,1761657039657,-518.1872452,0.000299,2]
[392554596,1761657039667,-333.4714611,0.000299,2]
[392554597,1761657039679,-708.01083557,0.000299,2]
[392554598,1761657039689,-771.2136937,0.000299,2]
[392554599,1761657039697,-950.7533349,0.000299,2]
[392554600,1761657039707,-930.07732843,0.000299,2]
[392554601,1761657039717,-10091.44901333,0.000299,2]
[392554602,1761657039726,-1425.0,0.00029908,2]
[392554603,1761657039735,-500.0,0.00029931,3]
[392554604,1761657039745,-62848.9126237,0.00029932,2]
[392554605,1761657039755,-1069.3947132,0.00029932,2]
[392554606,1761657039764,-36994.698153,0.00029932,2]
[392554607,1761657039774,-11987.7724185,0.00029932,2]
[392554608,1761657039784,-1425.0,0.00029935,2]
[392554609,1761657039794,-3127.2167768,0.00029939,2]
[392554610,1761657039805,-1425.0,0.00029954,2]
[392554611,1761657039814,-1523.92783432,0.00029967,2]
[392554612,1761657039824,-150.5,0.0002997,120]
[392554613,1761657039835,-100998.462204,0.0002997,3]
[392554614,1761657039843,-1425.0,0.00029972,2]
[392554615,1761657039853,-152.87988,0.00029973,2]
[392554616,1761657039863,-150.5,0.0002998,120]
[392554617,1761657039872,-1020.85581001,0.0002998,2]
[392554618,1761657039883,-164.421759,0.0002998,31]
[392554619,1761657039892,-500.0,0.0002998,15]
[392554620,1761657039902,-40399.3848818,0.0002998,3]
[392554621,1761657039912,-10099.8462204,0.00029985,3]
[392554622,1761657039922,-500.0,0.00029989,3]
[392554623,1761657039934,-500.0,0.00029989,3]
[392554624,1761657039944,-150.5,0.0002999,120]
[392554625,1761657039954,-160468.71022919,0.0002999,3]
[392554626,1761657039966,-3877.25710639,0.0002999,3]
[392554635,1761657042848,-151.0,0.0002998,2]
[392554639,1761657043045,-151.0,0.0002998,2]
[392554640,1761657043056,-298.0,0.0002999,3]
[392554675,1761657045656,-162.86918885,0.00029872,15]
[392554676,1761657045670,-11324.60681115,0.0002999,3]
[392554677,1761657045681,-309.90671999,0.0002999,3]
[392555643,1761657344557,152.56,0.0001446,2]
[392555645,1761657358061,-152.56,0.00015775,2]
[392555646,1761657358086,-152.56,0.00017089,2]
[392555647,1761657358110,-152.56,0.00018404,2]
[392555648,1761657358135,-30.0286259,0.00019718,2]
[392555649,1761657569672,-250.0,0.00017,2]
[392555650,1761657607819,242.47,0.00013699,2]
[392555653,1761657897972,-587.0,0.00019,2]
[392555654,1761657900062,-505.0,0.00019,2]
[392555656,1761657902549,-300.0,0.00018999,2]
[392555657,1761657902570,-399.08,0.00019,2]
[392555658,1761657905195,-250.0,0.00019,2]
[392555659,1761657907254,-1092.0,0.00019,2]
[392555660,1761657908067,212678.5847709,0.00015,2]
[392555661,1761657909244,-411.55530568,0.00019,2]
[392555662,1761657911214,-287.52469432,0.00019,2]
[392555663,1761657928073,-250.0,0.00019,2]
[392555665,1761658001119,-288.40616872,0.00018999,2]
[392555666,1761658027110,-500.0,0.00018999,2]
[392555667,1761658027141,-500.0,0.00018999,2]
[392555668,1761658027170,-500.0,0.00018999,2]
[392555669,1761658027201,-291.14292,0.00018999,2]
[392555670,1761658027226,-250.0,0.00018999,2]
[392555671,1761658027250,-39826.10313709,0.00019,2]
[392555672,1761658027278,-122.5313741,0.00019718,2]
[392555673,1761658027304,-242.47,0.00020187,2]
[392555674,1761658027329,-250.0,0.00020899,2]
[392555675,1761658027353,-250.0,0.00020899,2]
[392555676,1761658027374,-4732.60079809,0.00021,2]
[392555677,1761658027398,-152.56,0.00021033,2]
[392555678,1761658027422,-237.69519008,0.0002211,2]
[392555679,1761658027447,-629.2706065,0.00022328,2]
[392555680,1761658027469,-152.56,0.00022347,2]
[392555681,1761658027490,-21917.65335482,0.000225,2]
[392555682,1761658027515,-4412.19367994,0.00022558,2]
[392555683,1761658027538,-173.51,0.00022955,2]
[392555684,1761658027561,-152.56,0.00023662,2]
[392555685,1761658027582,-1009.19611799,0.00024,2]
[392555686,1761658027606,-256.0,0.000242,5]
[392555687,1761658027629,-152.56,0.00024977,2]
[392555688,1761658027652,-152.56,0.00026291,2]
[392555689,1761658027676,-242.47,0.00026676,2]
[392555690,1761658027698,-150.0,0.00027,2]
[392555691,1761658027721,-150.0,0.00027,2]
[392555692,1761658027744,-150.0,0.00027,2]
[392555693,1761658027767,-150.0,0.00027,2]
[392555694,1761658027790,-150.0,0.00027,2]
[392555695,1761658027813,-150.0,0.00027,2]
[392555696,1761658027836,-160.82492808,0.00027,2]
[392555697,1761658027859,-155.18142051,0.00027,2]
[392555698,1761658027883,-181.65987237,0.00027,2]
[392555699,1761658027905,-245.57775216,0.00027,2]
[392555700,1761658027929,-152.56,0.00027606,2]
[392555701,1761658027954,-220.0,0.00027892,2]
[392555702,1761658027980,-220.0,0.00027909,7]
[392555703,1761658028009,-220.0,0.00027912,2]
[392555704,1761658028033,-200.0,0.00027988,2]
[392555705,1761658028057,-150.0,0.000285,7]
[392555706,1761658028082,-277.73,0.0002856,2]
[392555707,1761658028105,-527.25,0.00028568,2]
[392555708,1761658028131,-172.5596035,0.00028833,2]
[392555709,1761658028155,-3436.94037611,0.00028912,2]
[392555710,1761658028181,-152.56,0.0002892,2]
[392555711,1761658028205,-250.0,0.00028974,2]
[392555712,1761658028228,-2280.48,0.00028994,2]
[392555713,1761658028252,-850.0,0.00029,5]
[392555714,1761658028276,-167.488458,0.00029057,2]
[392555715,1761658028299,-19390.48227993,0.00029058,2]
[392555716,1761658040121,500.0,0.00015,30]
[392555717,1761658043660,500.0,0.00015,30]
[392555735,1761658231776,-409.23512913,0.0002,2]
[392555736,1761658231788,-489.17961144,0.000221,2]
[392555737,1761658231797,-1220.28242064,0.0002431,120]
[392555738,1761658231806,-250.0,0.0002431,2]
[392555739,1761658231816,-300.0,0.00027787,2]
[392555740,1761658231825,-300.0,0.00027787,2]
[392555741,1761658231835,-300.0,0.00027787,2]
[392555742,1761658231845,-300.0,0.00027787,2]
[392555743,1761658231855,-414.82021093,0.00027787,2]
[392555744,1761658231865,-168.0,0.0002809,2]
[392555745,1761658231874,-168.0,0.00028766,2]
[392555746,1761658231884,-500.0,0.00028872,2]
[392555747,1761658231894,-218.23,0.00028935,2]
[392555748,1761658231904,-199.01588,0.00029057,2]
[392555749,1761658231913,-11055.95772007,0.00029058,2]
[392555750,1761658231923,-168.0,0.00029071,2]
[392555751,1761658231933,-220.0,0.00029352,2]
[392555752,1761658231943,-1200.0,0.00029489,7]
[392555753,1761658231954,-406.39129796,0.00029502,2]
[392555754,1761658231964,-166.68,0.00029746,2]
[392555755,1761658231973,-200.0,0.0002975,2]
[392555756,1761658231983,-267.6,0.00029753,2]
[392555757,1761658231992,-500.0,0.00029763,7]
[392555758,1761658232002,-300.0,0.00029763,7]
[392555759,1761658232011,-216.9840129,0.00029768,2]
[392555760,1761658232021,-1000.0,0.00029808,2]
[392555768,1761658232030,-1425.0,0.00029818,2]
[392555769,1761658232251,-342.011,0.0002982,24]
[392555770,1761658232261,-1425.0,0.00029825,2]
[392555771,1761658232271,-820.80326935,0.00029832,2]
[392555772,1761658232280,-1425.0,0.00029855,2]
[392555773,1761658232292,-193.08918013,0.0002989,2]
[392555774,1761658232301,-2191.46156327,0.0002989,2]
[392555775,1761658232310,-2191.46156325,0.00029891,2]
[392555776,1761658232320,-2191.46156325,0.00029892,2]
[392555777,1761658232329,-2191.46156325,0.00029893,2]
[392555778,1761658232339,-2191.46156325,0.00029894,2]
[392555779,1761658232348,-193.08918011,0.00029895,2]
[392555780,1761658232358,-2191.46156325,0.00029896,2]
[392555781,1761658232367,-166.88052057,0.00029896,15]
[392555782,1761658232377,-2191.46156325,0.00029897,2]
[392555783,1761658232386,-163.26646439,0.00029897,2]
[392555784,1761658232395,-2191.46156325,0.00029898,2]
[392555785,1761658232404,-2191.46156325,0.00029899,2]
[392555786,1761658232414,-15433.47647402,0.000299,2]
[392555787,1761658232423,-5000.0,0.000299,2]
[392555788,1761658232432,-193.08918011,0.000299,2]
[392555789,1761658232441,-345.45816346,0.000299,2]
[392555790,1761658232451,-150.0,0.000299,2]
[392555791,1761658232460,-500.0,0.000299,2]
[392555792,1761658232469,-222.3143074,0.000299,2]
[392555793,1761658232478,-7342.805114,0.000299,2]
[392555794,1761658232487,-2191.46156325,0.000299,2]
[392555795,1761658232496,-205.9628819,0.000299,5]
[392555796,1761658232506,-7908.99964774,0.000299,2]
[392555797,1761658232515,-472.00722372,0.000299,2]
[392555798,1761658232524,-620.05155228,0.000299,2]
[392555799,1761658232535,-186.48938244,0.00029903,2]
[392555800,1761658232544,-270.95297813,0.00029909,2]
[392555801,1761658232554,-150.0,0.00029918,2]
[392555802,1761658232563,-2350.0,0.00029935,2]
[392555803,1761658232571,-1339.8093577,0.00029936,2]
[392555804,1761658232606,-1398.71373312,0.00029936,2]
[392555805,1761658232617,-345.51780687,0.00029936,2]
[392555806,1761658232628,-508.67861572,0.00029936,2]
[392555807,1761658232639,-2883.02664705,0.00029936,2]
[392555808,1761658232650,-5623.71398958,0.00029936,2]
[392555814,1761658238419,-1375.53308926,0.00029936,2]
[392555815,1761658238430,-7931.7729885,0.00029936,2]
[392555816,1761658238441,-9888.7121439,0.0002995,2]
[392555817,1761658238452,-500.0,0.0002995,2]
[392555819,1761658238462,-150.5,0.0002997,120]
[392555820,1761658238473,-603.08173544,0.00029973,5]
[392555821,1761658238483,-150.5,0.0002998,120]
[392555822,1761658238494,-204.999999,0.0002998,2]
[392555823,1761658238505,-152.87988,0.0002998,2]
[392555824,1761658238520,-160.65,0.00029989,2]
[392555825,1761658238532,-500.0,0.00029989,3]
[392555826,1761658238546,-500.0,0.00029989,3]
[392555827,1761658238557,-500.0,0.00029989,3]
[392555828,1761658238568,-198.9035517,0.00029989,3]
[392555830,1761658238578,-500.0,0.00029989,3]
[392555831,1761658238589,-236.72059436,0.00029989,3]
[392555832,1761658238600,-227.94583319,0.0002999,2]
[392555833,1761658238611,-215.76960626,0.0002999,3]
[392555834,1761658238622,-150.5,0.0002999,120]
[392555835,1761658238633,-500.0,0.0002999,15]
[392555836,1761658238643,-164.421759,0.0002999,31]
[392555837,1761658238654,-288058.441716,0.0002999,3]
[392555838,1761658238664,-327991.155508,0.0002999,3]
[392555839,1761658238675,-500.0,0.0002999,60]
[392555840,1761658238686,-500.0,0.0002999,60]
[392555841,1761658238697,-500.0,0.0002999,60]
[392555842,1761658238707,-152.03,0.0002999,2]
[392555843,1761658238718,-152.03,0.0002999,2]
[392555844,1761658238728,-224.1246753,0.0002999,2]
[392555845,1761658238741,-224.1246753,0.0002999,2]
[392555846,1761658238752,-1000.0,0.00029995,7]
[392555847,1761658238762,-300.0,0.00029996,2]
[392555848,1761658238773,-1396.98064195,0.00029999,15]
[392555849,1761658238783,-188.54,0.00029999,3]
[392555850,1761658238795,-300.0,0.00029999,10]
[392555851,1761658238806,-300.0,0.00029999,10]
[392555852,1761658238818,-300.0,0.00029999,10]
[392555853,1761658238829,-666.0,0.00029999,10]
[392555854,1761658238840,-500.0,0.00029999,3]
[392555855,1761658238850,-300.0,0.00029999,10]
[392555856,1761658238861,-666.0,0.00029999,10]
[392555857,1761658238871,-500.0,0.00029999,2]
[392555858,1761658238881,-500.0,0.00029999,2]
[392555859,1761658238892,-500.0,0.00029999,2]
[392555860,1761658238902,-500.0,0.00029999,2]
[392555861,1761658238912,-500.0,0.00029999,2]
[392555862,1761658238923,-450.47608494,0.00029999,2]
[392555863,1761658238933,-666.0,0.00029999,10]
[392555864,1761658238944,-300.0,0.00029999,10]
[392555865,1761658238954,-51219.55234538,0.0003,2]
[392555866,1761658239060,-1613.49312355,0.0003,2]
[392555884,1761658239933,-1640.1490504,0.0003,2]
[392555899,1761658240168,-875.60414856,0.0003,2]
[392555900,1761658240180,-5594.44324653,0.0003,2]
[392555901,1761658240387,-1.6e-07,0.0003,2]
[392555902,1761658240400,-11472.0219507,0.0003,2]
[392555903,1761658240438,-300.07465841,0.0003,2]
[392555904,1761658240450,-89500.01028414,0.0003,2]
[392555907,1761658242808,-500.0,0.00029057,2]
[392555908,1761658242818,-269.34468126,0.00029057,2]
[392555909,1761658242827,-500.0,0.00029057,2]
[392555910,1761658242836,-500.0,0.00029057,2]
[392555911,1761658242846,-500.0,0.00029057,2]
[392555912,1761658242856,-500.0,0.00029057,2]
[392555913,1761658242865,-500.0,0.00029057,2]
[392555914,1761658242875,-534.15289746,0.00029057,2]
[392555915,1761658242884,-53.53802633,0.0003,2]
[392555916,1761658242925,-32.04512987,0.0003,2]
[392555917,1761658242941,-163566.59109895,0.0003,2]
[392555931,1761658245697,-5717.242647,0.0003,2]
[392555932,1761658245758,-151.0,0.00023418,2]
[392555933,1761658245769,-322.72876085,0.0003,2]
[392555934,1761658245780,-1096.5732305,0.0003,2]
[392555935,1761658245815,-22498.59204541,0.0003,2]
[392555936,1761658245877,-11487.9342576,0.0003,2]
[392555938,1761658334250,480.1172,0.0002,10]
[392555939,1761658343841,500.0,0.00015,30]
[392555940,1761658344302,500.0,0.00012,2]
[392555942,1761658447878,11701.930989,7.945e-05,2]
[392555943,1761658520983,874.0,7.945e-05,2]
[392555944,1761658521008,32.17509374,7.945e-05,2]
[392555945,1761658645944,500.0,0.00015,30]
[392555946,1761658648263,500.0,0.00015,30]
[392555947,1761658648768,500.0,0.00015,30]
[392555948,1761658649195,518.50524961,0.00012,2]
[392555955,1761659162650,151.0,0.0002,3]
[392555956,1761659229113,-150.0,0.00027,2]
[392555957,1761659229136,-150.0,0.00027,2]
[392555958,1761659229158,-150.0,0.00027,2]
[392555959,1761659229181,-150.0,0.00027,2]
[392555960,1761659229201,-150.0,0.00027,2]
[392555961,1761659229224,-150.0,0.00027,2]
[392555962,1761659229246,-150.0,0.00027,2]
[392555963,1761659229266,-150.0,0.00027,2]
[392555964,1761659229286,-150.0,0.00027,2]
[392555965,1761659229308,-166.66,0.00027778,30]
[392555966,1761659229329,-150.0,0.00028,7]
[392555967,1761659229349,-286.90992144,0.00028256,60]
[392555968,1761659229371,-500.0,0.00028356,7]
[392555969,1761659229392,-1100.0,0.00028356,7]
[392555970,1761659229413,-184.21,0.00028721,2]
[392555971,1761659229438,-199.88,0.00028946,2]
[392555972,1761659229460,-172.91,0.00028951,2]
[392555973,1761659229487,-150.0,0.00029,7]
[392555974,1761659229508,-151.0,0.00029,2]
[392555975,1761659229530,-868.56,0.00029082,120]
[392555976,1761659229552,-199.88,0.00029149,2]
[392555977,1761659229573,-1100.0,0.00029178,7]
[392555978,1761659229593,-199.88,0.00029351,2]
[392555979,1761659229615,-199.88,0.00029554,2]
[392555980,1761659229635,-199.88,0.00029757,2]
[392555981,1761659229656,-200.0,0.0002976,2]
[392555982,1761659229676,-166.88052056,0.000298,15]
[392555983,1761659229697,-2500.0,0.000298,2]
[392555984,1761659229717,-383.48134938,0.00029859,2]
[392555985,1761659229740,-281.57254416,0.00029872,2]
[392555986,1761659229761,-500.0,0.00029873,5]
[392555987,1761659229788,-500.0,0.00029873,2]
[392555988,1761659229808,-500.0,0.00029873,5]
[392555989,1761659229829,-500.0,0.00029873,5]
[392555990,1761659229849,-500.0,0.00029873,5]
[392555991,1761659229870,-596.16043482,0.00029873,5]